Cogmind - Beta 17 @@@ ROGUE MODE // 2026.07.26 @ 03:44:03 Player: rz Result: Destroyed by G-67 Veteran with Field Laser Performance ------------- Evolutions (4) 2000 Regions Visited (8) 1600 Robots Destroyed (39) 195 Value Destroyed (1418) 1418 Prototype IDs (26) 520 Alien Tech Used (0) 0 Bonus (915) 915 TOTAL SCORE: 6648 Bonus ------- Follower Combat Kills 118 Entered DSFs 500 Aligned with FarCom 300 Friendly Fire -3 Cogmind --------- Core Integrity 0/850 Matter 462/550 Energy 85/100 System Corruption 1% Temperature Cool (0) Movement Core (800) Ox15 Location -6/DSF Parts ------- > --- POWER (1) -------- (None) > --- PROPULSION (2) --- (None) > --- UTILITY (7) ------ High-capacity Storage Unit Matter Compressor Advanced Terrain Scan Processor Advanced Targeting Computer Graphene Brace > --- WEAPON (5) ------- (None) > --- INVENTORY (20) --- Large Storage Unit Trap Scanner Improved Trap Scanner Improved Terrain Scanner 0b10 Alert Chip Component Analysis Suite Peak State ------------ > --- POWER ------------ Fission Core > --- PROPULSION ------- Medium Treads Medium Treads > --- UTILITY ---------- Advanced Heat Sink High-capacity Storage Unit Advanced Terrain Scan Processor Advanced Targeting Computer Improved Heavy Armor Plating Medium Reactive Plating > --- WEAPON ----------- Improved Assault Rifle Enhanced Autogun Enhanced Autogun Enhanced Autogun Enhanced Autogun > --- INVENTORY -------- Compact Wheel Compact Wheel Advanced Heat Sink Large Storage Unit Matter Compressor Trap Scanner Improved Trap Scanner Improved Terrain Scanner 0b10 Alert Chip Improved Heavy Armor Plating Component Analysis Suite System Restoration Module High-powered Tractor Beam Heavy Assault Rifle Minigun High-powered Shotgun Powered Hammer [Rating: 65] Favorites ----------- Power Improved Deuterium Engine Engine Improved Deuterium Engine Power Core Fission Core Propulsion Medium Treads Treads Medium Treads Wheel Compact Wheel Utility Large Storage Unit Device Advanced Heat Sink Storage Large Storage Unit Processor Advanced Targeting Computer Protection Medium Armor Plating Weapon Enhanced Autogun Ballistic Gun Enhanced Autogun Launcher Mini Grenade Launcher Impact Weapon Powered Hammer Build | -11 -10 -10 -10 -9 -8 -7 -6 -6 ------- Run | Yrd Mat Min Exi Min Mat Fac Fac DSF Slots Evolved 8 | . . . . . 4 2 2 . Power . | . . . . . . . . . Propulsion . | . . . . . . . . . Utility 5 | . . . . . 2 1 2 . Weapon 3 | . . . . . 2 1 . . Parts Attached 64 | 7 2 7 1 2 8 16 4 17 Power 6 | 1 1 . . . 2 1 1 . Engine 5 | 1 1 . . . 2 1 . . Core 1 | . . . . . . . 1 . Reactor . | . . . . . . . . . Propulsion 11 | 2 . 2 . 1 1 4 . 1 Treads 5 | 2 . . . . . 3 . . Leg . | . . . . . . . . . Wheel 6 | . . 2 . 1 1 1 . 1 Hover . | . . . . . . . . . Flight . | . . . . . . . . . Utility 29 | 2 1 2 1 . 3 6 3 11 Device 14 | 1 . 2 . . 2 3 1 5 Storage 6 | 1 1 . 1 . . . 1 2 Processor 4 | . . . . . . 3 1 . Hackware . | . . . . . . . . . Protection 5 | . . . . . 1 . . 4 Artifact . | . . . . . . . . . Weapon 18 | 2 . 3 . 1 2 5 . 5 Energy Gun . | . . . . . . . . . Energy Cannon . | . . . . . . . . . Ballistic Gun 15 | 2 . 2 . 1 2 4 . 4 Ballistic Cannon . | . . . . . . . . . Launcher 1 | . . 1 . . . . . . Special Weapon . | . . . . . . . . . Impact Weapon 2 | . . . . . . 1 . 1 Slashing Weapon . | . . . . . . . . . Piercing Weapon . | . . . . . . . . . Special Melee Weapon . | . . . . . . . . . Unidentified Prototypes 3 | . . 1 . . 1 1 . . Parts Lost 35 | . . 6 . 2 1 2 . 24 Power 2 | . . . . 1 . . . 1 Propulsion 9 | . . 2 . 1 1 1 . 4 Utility 11 | . . 1 . . . 1 . 9 Weapon 13 | . . 3 . . . . . 10 Highest Loss Streak 24 | . . 5 . 2 1 1 . 24 To Critical Strikes 1 | . . . . . . . . 1 Average Backups 12 | 2 7 8 11 11 13 14 14 15 Power . | . . . . . . . . . Propulsion 1 | 1 1 1 1 1 1 2 2 1 Utility 6 | . . 2 4 6 5 7 8 10 Weapon 4 | . 4 4 5 4 5 4 4 3 Tool/Special . | . . . . . . . . . Unused Backups 10 | . 2 . . . . 5 1 2 Power . | . . . . . . . . . Propulsion 1 | . 1 . . . . . . . Utility 5 | . . . . . . 2 1 2 Weapon 4 | . 1 . . . . 3 . . Tool/Special . | . . . . . . . . . Average Slot Usage (%) 94 | . 100 96 71 87 91 99 99 84 Engine 7 | . 14 14 14 6 7 7 5 . Treads 11 | . 28 15 . . . 13 12 10 Wheel 6 | . . 11 28 23 16 1 . . Device 14 | . 14 12 14 14 18 15 20 6 Storage 9 | . 14 14 14 14 9 7 6 6 Processor 8 | . . . . . . 12 19 13 Protection 2 | . . . . . 4 1 . 11 Ballistic Gun 31 | . 28 27 . 27 35 37 32 28 Peak Build Rating 65 | 7 8 16 15 17 35 49 59 65 Average Rating 34 | 5 7 11 14 16 26 43 57 57 On Entrance 22 | . 7 8 16 15 16 28 49 59 Avg Prop Armor Cover (%) 4 | . . 4 . . . 5 . . Naked Turns . | . . . . . . . . . Heaviest Build 101 | 12 27 27 24 27 46 50 50 101 Greatest Support 56 | 40 40 40 32 32 26 56 56 56 Greatest Overweight (x) 4 | 3 . 1 . 1 4 3 1 3 Average Overweight (x) . | . . . . . 1 . . 1 Largest Inventory Capacity 20 | 8 15 15 15 15 15 15 15 20 Average Capacity 14 | 7 8 15 15 15 15 15 15 19 Most Carried 18 | 5 8 10 13 13 15 15 15 18 Average Carried 12 | 2 7 8 11 11 13 14 14 16 Final Capacity 20 | 8 15 15 15 15 15 15 15 20 Final Carried 15 | 5 8 9 13 13 14 15 15 6 Class Distribution -------------------- 28% | Mutant 27% | Gunner 25% | Skirmisher 11% | Scavenger-Skirmisher 7% | Tank Dominant Class ---------------- Mutant | -10/Materials Mutant | -10/Mines Mutant | -10/Exiles Skirmisher | -9/Mines Scavenger-Skirmisher | -8/Materials Gunner | -7/Factory Skirmisher | -6/Factory Tank | -6/DSF Resources | -11 -10 -10 -10 -9 -8 -7 -6 -6 ----------- Run | Yrd Mat Min Exi Min Mat Fac Fac DSF Matter Collected 2578 | 131 271 174 . 115 194 835 296 562 Remotely 539 | . . . . . . 73 . 466 Salvage Created 1869 | 25 278 217 . 100 160 476 121 492 Parts 113 | 4 19 9 . 2 10 35 3 31 Haulers Intercepted 1 | . 1 . . . . . . . Recyclers Shooed 2 | . . . . . . . 2 . Parts Field Recycled . | . . . . . . . . . Retrieved Matter . | . . . . . . . . . Parts Self-Destructed . | . . . . . . . . . Prevented . | . . . . . . . . . Parts Restored . | . . . . . . . . . Kills | -11 -10 -10 -10 -9 -8 -7 -6 -6 ------- Run | Yrd Mat Min Exi Min Mat Fac Fac DSF Combat Hostiles Destroyed 37 | . 7 9 . . 3 9 . 9 Guns 35 | . 7 7 . . 3 9 . 9 AOE 2 | . . 2 . . . . . . Classes Destroyed 14 | 1 4 2 . . 2 2 . 3 Worker 2 | . 1 . . . . 1 . . Builder 1 | . . . . . . 1 . . Tunneler 1 | 1 . . . . . . . . Hauler 1 | . 1 . . . . . . . Recycler 3 | . . 1 . 1 . . 1 . Operator 1 | . . . . . 1 . . . Swarmer 6 | . 3 . . . . 3 . . Grunt 11 | . 4 2 . . 2 . . 3 Sentry 4 | . . . . . 1 3 . . Specialist 2 | . . . . . . . . 2 Hunter 2 | . . . . . . . . 2 Programmer 4 | . . . . . . 3 . 1 Heavy 1 | . . . . . . . . 1 Assembled 7 | . . 7 . . . . . . Best Kill Streak 7 | 1 4 4 . 1 2 4 1 7 Combat Bots Only 7 | . 3 4 . . 2 3 . 7 Max Kills in Single Turn 2 | 1 1 2 . 1 2 2 1 1 Gunslinging 1 | . . . . . 1 . . . Exploded 2 | . . 2 . . . . . . Melee . | . . . . . . . . . Uniques/NPCs Destroyed . | . . . . . . . . . Combat | -11 -10 -10 -10 -9 -8 -7 -6 -6 -------- Run | Yrd Mat Min Exi Min Mat Fac Fac DSF Hostile Shots Fired 510 | . 23 38 . 24 13 76 . 336 Missed 133 | . 8 10 . 6 2 28 . 79 Hits 377 | . 15 28 . 18 11 48 . 257 Melee 13 | . . 13 . . . . . . Projectile 364 | . 15 15 . 18 11 48 . 257 AOE 2 | . . 2 . . . . . . Critical Strikes 16 | . . 1 . . . 1 . 14 Actively Blocked 4 | . . . . . . . . 4 Damage Taken 6525 | . 169 641 . 149 183 567 . 4816 Core 1123 | . 23 141 . 35 . 59 . 865 Absorbed by Shields . | . . . . . . . . . Ignored by Resistances 491 | . . . . . . . . 491 Core Remaining (%) 77 | 100 . . . 20 100 91 . . Volleys Fired 133 | 3 23 22 . 9 13 25 5 33 Largest 5 | 2 2 2 . 2 4 5 4 5 Hottest 123 | 40 40 50 . 40 85 123 98 123 Shots Fired 420 | 6 46 44 . 19 52 125 20 108 Gun 419 | 6 46 43 . 19 52 125 20 108 Cannon . | . . . . . . . . . Launcher 1 | . . 1 . . . . . . Special . | . . . . . . . . . Kinetic 419 | 6 46 43 . 19 52 125 20 108 Thermal . | . . . . . . . . . Explosive 1 | . . 1 . . . . . . Electromagnetic . | . . . . . . . . . Robot Hit Streak 22 | 3 6 10 . 2 15 18 22 14 Robot Miss Streak 7 | 2 7 2 . 5 7 3 2 4 Penetration Max . | . . . . . . . . . Secondary Targets 9 | . . 2 . . 1 1 . 5 Max Gunslinging Chain 1 | . . 1 . . 1 1 . 1 Shots Hit Robots 269 | 3 25 26 . 7 32 82 14 80 Core Hits 108 | 1 14 18 . 2 12 25 5 31 Critical Kills . | . . . . . . . . . Critical Parts Destroyed 1 | . . . . . . . . 1 Critical Strikes 1 | . . . . . . . . 1 Destroy 1 | . . . . . . . . 1 Melee Attacks 7 | . . . . . . 2 . 5 Impact 7 | . . . . . . 2 . 5 Slashing . | . . . . . . . . . Piercing . | . . . . . . . . . Sneak Attacks . | . . . . . . . . . Combat Hostiles . | . . . . . . . . . Follow-up Attacks . | . . . . . . . . . Damage Inflicted 4349 | 53 278 473 . 82 401 1276 229 1557 Guns 4058 | 53 278 311 . 82 401 1276 229 1428 Cannons . | . . . . . . . . . Explosions 162 | . . 162 . . . . . . Melee 129 | . . . . . . . . 129 Ramming . | . . . . . . . . . Kinetic 4058 | 53 278 311 . 82 401 1276 229 1428 Thermal . | . . . . . . . . . Explosive 162 | . . 162 . . . . . . Electromagnetic . | . . . . . . . . . Impact 129 | . . . . . . . . 129 Slashing . | . . . . . . . . . Piercing . | . . . . . . . . . Highest Corruption 6 | . . 6 6 6 . . . 1 Average Corruption 5 | . . 5 6 6 . . . 1 Corruption Purged . | . . . . . . . . . Corruption Blocked . | . . . . . . . . . Effects 38 | . . 16 8 13 . . . 1 Message Errors 8 | . . 4 1 3 . . . . Matter Fused 10 | . . 4 1 5 . . . . Heat Flow Errors 7 | . . 2 4 1 . . . . Energy Discharges 4 | . . 2 1 . . . . 1 Parts Fused 1 | . . 1 . . . . . . Data Loss (minor) 7 | . . 3 1 3 . . . . Misfires 1 | . . . . 1 . . . . Overload Shots . | . . . . . . . . . Overflow Damage 13 | . . 1 . . . . . 12 Projectiles . | . . . . . . . . . Explosions 1 | . . 1 . . . . . . Melee 12 | . . . . . . . . 12 Knockbacks 1 | . . . . . . . . 1 Impact 1 | . . . . . . . . 1 Kinetic . | . . . . . . . . . Secondary . | . . . . . . . . . Self-Inflicted Damage . | . . . . . . . . . Shots . | . . . . . . . . . Rammed . | . . . . . . . . . Targets Rammed . | . . . . . . . . . Kicked . | . . . . . . . . . Crushed . | . . . . . . . . . Highest Temperature 248 | . 9 217 248 102 13 54 6 247 Average Temperature 63 | . 7 102 108 44 10 19 3 109 Received Heat Transfer 1482 | . 66 92 . . 63 48 . 1213 Siege Activations . | . . . . . . . . . Martial Activations . | . . . . . . . . . Shielding Activations . | . . . . . . . . . Robots Disrupted . | . . . . . . . . . Combat Hostiles . | . . . . . . . . . Robots Corrupted . | . . . . . . . . . Combat Hostiles . | . . . . . . . . . Parts Fried . | . . . . . . . . . Impact Corruptions 1 | . . . . . . . . 1 Robots Melted . | . . . . . . . . . Combat Hostiles . | . . . . . . . . . Parts Melted . | . . . . . . . . . Heat Transferred . | . . . . . . . . . Parts Sabotaged . | . . . . . . . . . Parts Stolen . | . . . . . . . . . Parts Stripped . | . . . . . . . . . Power Chain Reactions . | . . . . . . . . . Alert | -11 -10 -10 -10 -9 -8 -7 -6 -6 ------- Run | Yrd Mat Min Exi Min Mat Fac Fac DSF Maximum Alert Level . | . . . . . . . . . Low Security (%) 100 | 100 100 100 . 100 100 100 100 100 Level 1 . | . . . . . . . . . Level 2 . | . . . . . . . . . Level 3 . | . . . . . . . . . Level 4 . | . . . . . . . . . Level 5 . | . . . . . . . . . High Security . | . . . . . . . . . Max Security . | . . . . . . . . . Peak Influence 135 | . 135 55 . 87 81 105 12 95 Initial 40 | . . 40 . . 4 6 . . Average 19 | . 71 13 . 27 34 15 . 12 Influence Increases 1173 | 5 225 147 . 117 130 306 18 225 Destroy 0b10 Robot/C 720 | . 140 80 . 60 80 180 . 180 Destroy 0b10 Robot/NC 50 | 5 10 5 . 5 10 10 5 . Destroy Leader 174 | . 22 20 . 10 22 70 . 30 Allied During Kill 53 | . . 8 . 18 17 10 . . Successful Hack 45 | . 8 . . 9 . 16 12 . Disable Machine 15 | . . . . 15 . . . . Destroy Structure 11 | . . 4 . . 1 5 1 . Lose Combat Pursuer 105 | . 45 30 . . . 15 . 15 Influence Decreases 1173 | 5 120 205 47 105 127 321 18 225 Entered New Map 129 | . . 65 47 . 8 9 . . Time Decay 767 | 5 120 126 . 100 109 289 18 . Lost Part 254 | . . 14 . 5 10 . . 225 Lost Ally 17 | . . . . . . 17 . . Purge Threat 6 | . . . . . . 6 . . Squads Dispatched 8 | . . . . . . 4 . 4 Investigation . | . . . . . . . . . Extermination 4 | . . . . . . 4 . . Reinforcement 4 | . . . . . . . . 4 Assault . | . . . . . . . . . Garrison . | . . . . . . . . . Intercept . | . . . . . . . . . Searches Triggered . | . . . . . . . . . Construction Impeded . | . . . . . . . . . Haulers Reinforced . | . . . . . . . . . Active Scanning Responses . | . . . . . . . . . Cargo Convoy Interrupts . | . . . . . . . . . Stealth | -11 -10 -10 -10 -9 -8 -7 -6 -6 --------- Run | Yrd Mat Min Exi Min Mat Fac Fac DSF Distress Signals 5 | . 1 1 . . . 3 . . Communications Jammed . | . . . . . . . . . Distress Signals . | . . . . . . . . . Times Spotted 80 | . 10 24 . 4 9 17 . 16 Peak Tracking Total 9 | . 3 9 . 4 6 3 . 8 Tactical Retreats 7 | . 2 3 . . . 1 . 1 Traps | -11 -10 -10 -10 -9 -8 -7 -6 -6 ------- Run | Yrd Mat Min Exi Min Mat Fac Fac DSF Traps Triggered 6 | . 1 . . . 2 1 1 1 Indirectly . | . . . . . . . . . Trap Hack Attempts . | . . . . . . . . . Triggered . | . . . . . . . . . Disarmed . | . . . . . . . . . Reprogrammed . | . . . . . . . . . Reused . | . . . . . . . . . Traps Extracted . | . . . . . . . . . Installed . | . . . . . . . . . Triggered . | . . . . . . . . . Machines | -11 -10 -10 -10 -9 -8 -7 -6 -6 ---------- Run | Yrd Mat Min Exi Min Mat Fac Fac DSF Machines Disabled 1 | . . . . 1 . . . . Max in Single Turn 1 | . . . . 1 . . . . Machines Repaired . | . . . . . . . . . Machines Dismantled . | . . . . . . . . . Machines Sabotaged . | . . . . . . . . . Overloaded Fab Kills . | . . . . . . . . . Hacking | -11 -10 -10 -10 -9 -8 -7 -6 -6 --------- Run | Yrd Mat Min Exi Min Mat Fac Fac DSF Machines Accessed 15 | . 1 . 1 1 1 7 4 . Terminals 9 | . 1 . . 1 . 4 3 . Fabricators . | . . . . . . . . . Repair Stations . | . . . . . . . . . Recycling Units 2 | . . . . . . 2 . . Scanalyzers 3 | . . . . . 1 1 1 . Garrison Access . | . . . . . . . . . Total Hacks 33 | . 1 . 1 1 2 19 9 . Successful 11 | . 1 . 1 1 1 5 2 . Failed 20 | . . . . . . 13 7 . Catastrophic 10 | . . . . . . 7 3 . Database Lockouts 2 | . . . . . 1 1 . . Manual 9 | . . . 1 1 . 3 4 . Terminals 16 | . 1 . . 1 . 8 6 . Fabricators . | . . . . . . . . . Repair Stations . | . . . . . . . . . Recycling Units 6 | . . . . . . 6 . . Scanalyzers 10 | . . . . . 2 5 3 . Garrison Access . | . . . . . . . . . Terminal Hacks 6 | . 1 . 1 1 . 2 1 . Open DSF 1 | . . . . . . . 1 . Level Access Points 2 | . 1 . . 1 . . . . Unreport Threat 1 | . . . . . . 1 . . Zone Layout 1 | . . . . . . 1 . . Proto ID Catalog 1 | . . . 1 . . . . . Fabricator Hacks . | . . . . . . . . . Repair Station Hacks . | . . . . . . . . . Recycling Unit Hacks 2 | . . . . . . 2 . . Retrieve Components 2 | . . . . . . 2 . . Scanalyzer 3 | . . . . . 1 1 1 . Retrieve Study 3 | . . . . . 1 1 1 . Garrison Access Hacks . | . . . . . . . . . Unauthorized Hacks . | . . . . . . . . . Terminals . | . . . . . . . . . Fabricators . | . . . . . . . . . Repair Stations . | . . . . . . . . . Recycling Units . | . . . . . . . . . Scanalyzers . | . . . . . . . . . Garrison Access . | . . . . . . . . . Data Cores Recovered 1 | . . . . . 1 . . . Used . | . . . . . . . . . Hacking Detections 10 | . . . . 1 . 6 3 . Full Trace Events . | . . . . . . . . . Feedback Events . | . . . . . . . . . Feedback Blocked . | . . . . . . . . . Robot Schematics Acquired . | . . . . . . . . . Robots Built . | . . . . . . . . . Authchips . | . . . . . . . . . Time . | . . . . . . . . . Total Robot Build Rating . | . . . . . . . . . Part Schematics Acquired . | . . . . . . . . . Parts Built . | . . . . . . . . . Authchips . | . . . . . . . . . Time . | . . . . . . . . . Total Part Build Rating . | . . . . . . . . . Part Studies Acquired 3 | . . . . . 1 1 1 . Parts Repaired . | . . . . . . . . . Time . | . . . . . . . . . Parts Recycled . | . . . . . . . . . Recycled Matter . | . . . . . . . . . Retrieved Matter . | . . . . . . . . . Retrieved Components 10 | . . . . . . 10 . . Parts Scanalyzed . | . . . . . . . . . Part Schematics Acquired . | . . . . . . . . . Parts Damaged . | . . . . . . . . . Bothacking | -11 -10 -10 -10 -9 -8 -7 -6 -6 ------------ Run | Yrd Mat Min Exi Min Mat Fac Fac DSF Used RIF Installer . | . . . . . . . . . Robots Hacked . | . . . . . . . . . Non-combat . | . . . . . . . . . Combat . | . . . . . . . . . Robot Hacks Applied . | . . . . . . . . . Relay Couplers Released . | . . . . . . . . . Fabnet Peak Effective % . | . . . . . . . . . Robots Rewired . | . . . . . . . . . Allies Hacked . | . . . . . . . . . Hacks Repelled . | . . . . . . . . . Allies | -11 -10 -10 -10 -9 -8 -7 -6 -6 -------- Run | Yrd Mat Min Exi Min Mat Fac Fac DSF Total Allies 4 | . . 3 . 1 . . . . Largest Group 4 | . . 3 3 4 3 3 . . Highest-Rated Group 71 | . . 40 40 71 40 37 . . Highest-Rated Ally 31 | . . 16 16 31 16 16 . . Total Orders 3 | . . . . . . 3 . . STAY 3 | . . . . . . 3 . . Ally Attacks 60 | . . 9 . 20 20 11 . . Total Damage 655 | . . 121 . 198 210 126 . . Kills 7 | . . 2 . 3 2 . . . Allies Corrupted . | . . . . . . . . . Allies Melted 1 | . . . . . . 1 . . Intel | -11 -10 -10 -10 -9 -8 -7 -6 -6 ------- Run | Yrd Mat Min Exi Min Mat Fac Fac DSF Active Infowar (turns) 3522 | 13 298 355 233 340 134 1730 405 14 Sensors 976 | . . 269 233 340 134 . . . Terrain 508 | . . . . . . 90 405 13 Traps 2059 | . . . . . . 1640 405 14 Seismic 397 | 13 298 86 . . . . . . Robot Analysis Total . | . . . . . . . . . Derelict Logs Recovered 2 | . . 1 . 1 . . . . Drone Launches . | . . . . . . . . . Drone Recoveries . | . . . . . . . . . Exploration | -11 -10 -10 -10 -9 -8 -7 -6 -6 ------------- Run | Yrd Mat Min Exi Min Mat Fac Fac DSF Turns Passed 4637 | 83 298 573 233 340 262 1947 405 496 Spaces Moved 2461 | 39 135 233 225 269 178 1059 228 95 Core 11 | 11 . . . . . . . . Treads 1542 | 28 135 195 . . . 872 228 84 Legs . | . . . . . . . . . Wheels 908 | . . 38 225 269 178 187 . 11 Hover . | . . . . . . . . . Flight . | . . . . . . . . . Fastest Speed 50 | 50 160 100 100 90 105 105 160 120 Average Speed 147 | 154 160 200 100 102 109 153 160 223 Slowest Speed 400 | 200 160 240 100 115 140 160 240 400 Overloaded Moves . | . . . . . . . . . Propulsion Burnouts . | . . . . . . . . . Robots Hopped . | . . . . . . . . . Potential Cave-ins . | . . . . . . . . . Cave-ins Triggered . | . . . . . . . . . Exploration Rate (%) 35 | 4 29 54 63 67 19 33 8 41 Regions Visited 8 Branch Regions 3 Pre-discovered Areas 1 | . . . . 1 . . . . Known Exits Taken 3 | . . . . 1 1 . 1 . Unknown Exits Taken 5 | 1 1 1 1 . . 1 . . Scrap Searched 1 | . . . . 1 . . . . Spaces Dug 2 | . . . . . . 2 . . Terrain Destroyed 6 | . . 4 . . . 2 . . Melee 2 | . . . . . . 2 . . Projectile . | . . . . . . . . . AOE 4 | . . 4 . . . . . . Terrain Rammed . | . . . . . . . . . Walls Destroyed . | . . . . . . . . . Machines Disabled . | . . . . . . . . . Actions | -11 -10 -10 -10 -9 -8 -7 -6 -6 --------- Run | Yrd Mat Min Exi Min Mat Fac Fac DSF Total 3222 | 53 177 299 233 316 217 1339 265 323 Wait 456 | . 7 28 5 34 3 201 15 163 Move 2453 | 38 134 232 224 268 177 1058 227 95 Hop . | . . . . . . . . . Pick Up 50 | 5 6 7 1 2 6 16 5 2 Fast Attach 32 | 7 1 2 . 1 9 5 2 5 Attach 31 | . . 6 . 2 4 4 2 13 Detach 5 | . . . 2 . . 1 . 2 Swap 23 | . 2 1 1 . 2 12 3 2 Drop 30 | . 4 1 . . 3 15 6 1 Fire 133 | 3 23 22 . 9 13 25 5 33 Melee 7 | . . . . . . 2 . 5 Ram . | . . . . . . . . . Kick . | . . . . . . . . . Crush . | . . . . . . . . . Escape Stasis 2 | . . . . . . . . 2 Rewire . | . . . . . . . . . Trap . | . . . . . . . . . Miscellaneous . | . . . . . . . . . Route ------- -11/Scrapyard -10/Materials (discovered 5 exits: Mat x3 / [*Min x2]) -10/Mines (discovered 3 exits: *Mat / *Exi / [*Sub]) -10/Exiles (discovered 2 exits: *Min x2) -9/Mines (discovered 2 exits: *Mat x2) -8/Materials (discovered 2 exits: *Fac x2) -7/Factory -6/Factory (discovered 2 exits: [*Low] / DSF) -6/DSF History --------- Turn | Location | Event 2 | -11/Scrapyard | Met Revision 17 21 | -11/Scrapyard | Discovered new exit (range 15) 84 | -11/Scrapyard | Entered Materials 84 | -10/Materials | Discovered new exit (range 7) 192 | -10/Materials | Identified exit to Materials 256 | -10/Materials | Discovered new exit (range 16) 311 | -10/Materials | Build established: Mutant 382 | -10/Materials | Entered Mines 445 | -10/Mines | Assembled infested the area 450 | -10/Mines | Assisted by a Guerilla fighting off Assembled 536 | -10/Mines | Core integrity fell below 50% 543 | -10/Mines | Lost 5 parts (1n1u3w) 681 | -10/Mines | Found a damaged Exp. Sensor Array with a note attached 686 | -10/Mines | Found Prototype Device 686 | -10/Mines | Identified Exp. Sensor Array 722 | -10/Mines | Learned location of 1 exit from Materials 768 | -10/Mines | Found a hidden stash of uninstalled traps 833 | -10/Mines | Discovered exit to Materials (range 15) 833 | -10/Mines | Assisted by bots powering up and referring to "LRC-V3" 917 | -10/Mines | Discovered new exit (range 10) 946 | -10/Mines | Deemed a non-threat by the Exiles lab entrance 946 | -10/Mines | Discovered new exit (range 5) 955 | -10/Mines | Entered Exiles 955 | -10/Exiles | Accompanied by 3 allies 969 | -10/Exiles | Discovered new exit (range 15) 981 | -10/Exiles | Met 8R-AWN 997 | -10/Exiles | Met EX-HEX 1024 | -10/Exiles | Met EX-BIN 1036 | -10/Exiles | Aligned with FarCom system 1037 | -10/Exiles | Given EX-Vault access code 1060 | -10/Exiles | Opened EX-Vault 1068 | -10/Exiles | Found 0b10 Alert Chip 1088 | -10/Exiles | Warned to stay clear of 0b10 Research branches 1117 | -10/Exiles | Met EX-DEC 1170 | -10/Exiles | Discovered new exit (range 14) 1188 | -10/Exiles | Left Exiles lab with 0b10 Alert Chip 1188 | -10/Exiles | Entered Mines 1188 | -9/Mines | Accompanied by 3 allies 1191 | -9/Mines | Received a Mining Laser from a helpful Derelict 1261 | -9/Mines | Found a Scrap Suit stashed away for nefarious purposes 1340 | -9/Mines | Learned location of Zion (-7) 1372 | -9/Mines | Identified exit to Materials 1483 | -9/Mines | Build established: Skirmisher 1528 | -9/Mines | Entered Materials 1528 | -8/Materials | Accompanied by 3 allies 1528 | -8/Materials | Evolved 4 slots: Utility x2, Weapon x2 1529 | -8/Materials | Identified exit to Factory 1565 | -8/Materials | Central database locked down 1702 | -8/Materials | Discovered exit to Factory (range 12) 1790 | -8/Materials | Entered Factory 1790 | -7/Factory | Accompanied by 3 allies 1790 | -7/Factory | Evolved 2 slots: Utility x1, Weapon x1 1869 | -7/Factory | Build established: Scavenger-Skirmisher 2700 | -7/Factory | Build established: Gunner 3428 | -7/Factory | Central database locked down 3732 | -7/Factory | Discovered new exit (range 3) 3737 | -7/Factory | Entered another Factory area 3737 | -6/Factory | Evolved 2 slots: Utility x2 3978 | -6/Factory | Discovered new exit (range 8) 4049 | -6/Factory | Build established: Skirmisher 4142 | -6/Factory | Identified exit to DSF 4142 | -6/Factory | Entered DSF 4217 | -6/DSF | Additional patrols routed to DSF 4466 | -6/DSF | Build established: Tank 4588 | -6/DSF | Destroyed 7 combat bots 4602 | -6/DSF | Core integrity fell below 50% 4627 | -6/DSF | Core integrity fell below 20% 4638 | -6/DSF | Destroyed by G-67 Veteran with Field Laser Last Messages --------------- 04597_ X-67 Chaingunner system corrupted by crushing effect. 04598_ Com. Wheel+ destroyed. 04598_ Critical hit (Destroy). 04598_ Powered Hammer destroyed. 04598_ Adv. Heat Sink destroyed. 04606_ Acquired Hrd. Heavy Armor Plating. 04608_ Acquired Graphene Brace. 04609_ System corrupted: Energy discharge (-23). 04610_ Com. Wheel+ destroyed. 04612_ Slug penetrates Wall. 04618_ G-50 Soldier destroyed. 04622_ Slug penetrates G-50 Soldier. 04630_ Hrd. Heavy Armor Plating destroyed. 04634_ System Restoration Module destroyed. 04634_ G-50 Soldier suffers critical hit (Destroy). 04634_ Destroyed Carbon-fiber Leg. 04636_ Slug penetrates G-50 Soldier. 04636_ Gauss Rifle destroyed. Map ----- +----------------------------------------------------+ | | | | | ???????????##???#?#??????????????#???# | | ????????????????##??#?#????????#??#?#? | | ?????????#?#??#?????????#????????##??? | | ?????????#??#?#??????#???###?##???###? | | ?????????#?#????#?#??#?###""#????????? | | ??????????????????????#?##"#???????#?? | | ????????#########??????###"####???#??? | | ??????#?# ]]#########""%""#???#??? | | ????????# ]]#!!!#!!##"%%""#???#??? | | ???????## ^ ""##"#??#? | | ???????## """""#???? | | ????????### ### ! # ## ""###????# | | ??????????# ??#!!!# ### ###??#???# | | ????????? ? ########## "###?#?##? | | ????????# ?????????##!! !##??#??## | | ????????# ? ?##?????#!! !#?????#?? | | ???????#### ?????#????##"" ###?#?#?#? | | ????????#?[??????#?? ??#! #???##??? | | ?????????[[? ????? ???#! ! #???????? | | ?????????[??????????#?## %= #?##?#??? | | ????????##??????#??#??#|"#! ###??????# | | ??????????#?????#[[[#![=##% g ##?###?? | | ????????????????#[[[! = ##!gx #??????? | | ?????????? [ *[*@! g #??????? | | ?????????? =[![%=! #??????? | | ?????????? % !]!! #??????? | | ??????????? A ##!!!#!!!## #??????? | | ??????????? ??#!!!#!!!?# #??????? | | ????????????????###?###??######??????? | | ?????????????????????????????????????? | | ?????????????????????????????????????? | | ?????????????????????????????????????? | | ?????????????????????????????????????? | | ?????????????????????????????????????? | | ?????????????????????????????????????? | | ?????????????????????????????????????? | | ?????????????????????????????????????? | | ?????????????????????????????????????? | | ?????????????????????????????????????? | | ?????????????????????????????????????? | | ?????????????????????????????????????? | | ?????????????????????????????????????? | | ?????????????????????????????????????? | | ?????????????????????????????????????? | | ?????????????????????????????????????? | | ?????????????????????????????????????? | | ?????????????????????????????????????? | | ?????????????????????????????????????? | +----------------------------------------------------+ Best States ------------- Heat Dissipation 67 Energy Generation 18 Energy Capacity 310 Matter Stores 300 Matter Capacity 300 Sight Range 16 Robot Scan Range 20 Terrain Scan Range 16 Terrain Scan Density 210 Armor Coverage 825 Resistance: KI 30 Evasion (%) 42 Targeting Accuracy 14 Recoil Reduction 2 Item Schematics ----------------- None Robot Schematics ------------------ None Fabricated ------------ Nothing Repaired ---------- Nothing Studied --------- Lgt. Assault Rifle | -8/Materials | Hacked Com. Wheel | -7/Factory | Hacked Minigun | -6/Factory | Hacked Alien Tech Used ----------------- None Achievements -------------- None Challenges ------------ None Game ------ Seed MagneticExperimentalMatter Manual? 0 Play Time 00:44:00 Cumulative 115.5 hours Start 2026.07.26 @ 03:01:19 End 2026.07.26 @ 03:44:03 Sessions 1 Manual Loads 0 Difficulty Rogue Special Mode None Game No. 129 Rogue 75 Adventurer 54 Explorer 0 Win Type - Total 3 Types 2/0/0/1/0/0/0/0/0/0 Lore% 51 Gallery% 49 Achievement% 44 Wizard Run 0 Options --------- Layout 1 ASCII 0 Keyboard 0 Movement Mouse Keybinds 1 Fullscreen 1 Font 32/Tamsyn Map View 50x35 Zoom Use 0% Tactical HUD 1 Map Filters NONE Filters NONE Steam 1 RUN: c9b91ea0-b383-4d7c-9ea1-7a5c5c1e3995